[Event "EYCC Girls-U18 2019"]
[Site "Bratislava"]
[Date "2019.08.08"]
[Round "7.11"]
[White "Koubova, Anna Marie"]
[Black "Gajcin, Marina"]
[Result "1/2-1/2"]
[ECO "D72"]
[WhiteElo "2094"]
[BlackElo "2267"]
[Annotator "NA"]
[PlyCount "202"]
[EventDate "2019.08.02"]
[EventType "swiss"]
[EventCountry "SVK"]
[SourceTitle "playchess.com"]
[Source "ChessBase"]
[SourceQuality "1"]
[TimeControl "40/5400+30:1800+30"]

1. d4 {[%emt 0:00:00]} Nf6 {[%emt 0:00:00]} 2. c4 {[%emt 0:00:00]} g6 {[%emt 0:00:00]} 3. g3 {[%emt 0:00:00]} Bg7 {[%emt 0:00:00]} 4. Bg2 {[%emt 0:00:00]} d5 {[%emt 0:00:00]} 5. cxd5 {[%emt 0:00:03]} Nxd5 {[%emt 0:00:00]} 6. e4 {[%emt 0:00:10]} Nb6 {[%emt 0:00:00]} 7. Ne2 {[%emt 0:00:08]} c5 {[%emt 0:00:01]} 8. d5 {[%emt 0:00:06]} e6 {[%emt 0:00:14]} 9. O-O {[%emt 0:00:22]} O-O {[%emt 0:00:06]} 10. Nec3 {[%emt 0:00:08]} exd5 {[%emt 0:06:24]} 11. exd5 {[%emt 0:00:16]} Nc4 {[%emt 0:02:02]} 12. Nd2 {[%emt 0:10:06]} Ne5 {[%emt 0:03:29]} 13. Nde4 {[%emt 0:07:07]} Na6 {[%emt 0:13:10]} 14. b3 {[%emt 0:15:35]} Bg4 {[%emt 0:16:35]} 15. f3 {[%emt 0:03:08]} Bf5 {[%emt 0:00:42]} 16. Bg5 {[%emt 0:10:03]} f6 {[%emt 0:08:31]} 17. Be3 {[%emt 0:01:12]} Rc8 {[%emt 0:03:45]} 18. g4 {[%emt 0:15:45]} Bd7 {[%emt 0:06:34]} 19. h3 {[%emt 0:07:38]} Nf7 {[%emt 0:02:58]} 20. Rc1 {[%emt 0:04:25]} f5 {[%emt 0:06:39]} 21. Nf2 {[%emt 0:00:53]} Re8 {[%emt 0:04:42]} 22. Re1 {[%emt 0:01:23]} Qh4 {[%emt 0:01:37]} 23. Nb1 {[%emt 0:03:37]} Rxe3 {[%emt 0:10:09]} 24. Rxe3 {[%emt 0:00:33]} Bd4 {[%emt 0:00:07]} 25. Qd2 {[%emt 0:06:53]} Bxe3 {[%emt 0:04:20]} 26. Qxe3 {[%emt 0:00:07]} Re8 {[%emt 0:00:44]} 27. Qd2 {[%emt 0:01:14]} Qg3 {[%emt 0:01:04]} 28. Nd3 {[%emt 0:03:32]} b6 {[%emt 0:00:39]} 29. Re1 {[%emt 0:00:50]} Rxe1+ {[%emt 0:00:45]} 30. Qxe1 {[%emt 0:00:12]} Qxe1+ {[%emt 0:01:12]} 31. Nxe1 {[%emt 0:00:05]} Kf8 {[%emt 0:01:25]} 32. a4 {[%emt 0:03:33]} Nb4 {[%emt 0:00:56]} 33. Nc3 {[%emt 0:00:24]} f4 {[%emt 0:02:00]} 34. Bf1 {[%emt 0:01:32]} Ne5 {[%emt 0:01:35]} 35. h4 {[%emt 0:03:49]} Ke7 {[%emt 0:01:35]} 36. Bc4 {[%emt 0:01:24]} h6 {[%emt 0:02:30]} 37. g5 {[%emt 0:01:19]} hxg5 {[%emt 0:00:51]} 38. hxg5 {[%emt 0:00:05]} Nf7 {[%emt 0:00:50]} 39. Ne4 {[%emt 0:00:41]} Nd6 {[%emt 0:00:38]} 40. Ng2 {[%emt 0:00:00]} Bf5 {[%emt 0:00:00]} 41. Nxd6 {[%emt 0:28:02]} Kxd6 {[%emt 0:00:49]} 42. Nxf4 {[%emt 0:00:04]} Ke5 {[%emt 0:04:30]} 43. Ng2 {[%emt 0:01:00]} Nxd5 {[%emt 0:00:56]} 44. Kf2 {[%emt 0:00:35]} Nf4 {[%emt 0:06:38]} 45. Ne3 {[%emt 0:01:40]} Bb1 {[%emt 0:06:36]} 46. Kg3 {[%emt 0:00:44]} Nh5+ {[%emt 0:03:29]} 47. Kg4 {[%emt 0:01:14]} Kd4 {[%emt 0:00:34]} 48. Nd5 {[%emt 0:01:13]} Bf5+ {[%emt 0:03:20]} 49. Kh4 {[%emt 0:00:14]} Ng7 {[%emt 0:01:19]} 50. Ne7 {[%emt 0:00:47]} Bc2 {[%emt 0:00:44]} 51. Nd5 {[%emt 0:00:52]} Nf5+ {[%emt 0:01:25]} 52. Kg4 {[%emt 0:00:13]} Ne3+ {[%emt 0:03:33]} 53. Nxe3 {[%emt 0:00:17]} Kxe3 {[%emt 0:00:03]} 54. f4 {[%emt 0:00:19]} Bf5+ {[%emt 0:00:45]} 55. Kg3 {[%emt 0:00:08]} Ke4 {[%emt 0:00:33]} 56. Bf7 {[%emt 0:00:55]} Kd4 {[%emt 0:01:15]} 57. Kf3 {[%emt 0:01:00]} a6 {[%emt 0:00:52]} 58. Be8 {[%emt 0:00:37]} Kd3 {[%emt 0:00:44]} 59. Bc6 {[%emt 0:00:33]} Kd4 {[%emt 0:00:39]} 60. Be8 {[%emt 0:00:20]} Bc2 {[%emt 0:00:45]} 61. Bf7 {[%emt 0:00:44]} b5 {[%emt 0:00:25]} 62. axb5 {[%emt 0:00:09]} axb5 {[%emt 0:00:04]} 63. Be6 {[%emt 0:00:22]} Bd1+ {[%emt 0:01:00]} 64. Kf2 {[%emt 0:00:38]} Ke4 {[%emt 0:01:14]} 65. Kg3 {[%emt 0:00:27]} Bh5 {[%emt 0:00:40]} 66. Bf7 {[%emt 0:00:50]} Kf5 {[%emt 0:00:14]} 67. Bd5 {[%emt 0:00:34]} Bd1 {[%emt 0:00:23]} 68. Bf7 {[%emt 0:00:19]} Be2 {[%emt 0:00:21]} 69. Kf2 {[%emt 0:00:26]} Bd1 {[%emt 0:00:22]} 70. Ke3 {[%emt 0:00:24]} Bc2 {[%emt 0:00:37]} 71. Bd5 {[%emt 0:00:29]} Kg4 {[%emt 0:00:33]} 72. Be6+ {[%emt 0:00:38]} Kg3 {[%emt 0:00:13]} 73. Bd5 {[%emt 0:00:41]} Kg4 {[%emt 0:00:43]} 74. Be6+ {[%emt 0:00:16]} Bf5 {[%emt 0:00:00]} 75. Bd5 {[%emt 0:00:13]} Kg3 {[%emt 0:00:35]} 76. Bc6 {[%emt 0:01:02]} b4 {[%emt 0:00:50]} 77. Bd5 {[%emt 0:00:14]} Kg4 {[%emt 0:01:09]} 78. Bf3+ {[%emt 0:00:32]} Kh4 {[%emt 0:00:15]} 79. Bd5 {[%emt 0:00:08]} Kg3 {[%emt 0:00:05]} 80. Bf7 {[%emt 0:00:47]} Kg2 {[%emt 0:00:26]} 81. Bc4 {[%emt 0:00:08]} Kg3 {[%emt 0:00:44]} 82. Bd5 {[%emt 0:00:22]} Kh4 {[%emt 0:00:27]} 83. Bc4 {[%emt 0:00:19]} Bc2 {[%emt 0:00:34]} 84. Kd2 {[%emt 0:00:17]} Bb1 {[%emt 0:00:27]} 85. Ke3 {[%emt 0:00:10]} Kg3 {[%emt 0:00:36]} 86. Bd5 {[%emt 0:00:10]} Bc2 {[%emt 0:00:14]} 87. Bf7 {[%emt 0:00:40]} Kg2 {[%emt 0:00:27]} 88. Bc4 {[%emt 0:00:06]} Bf5 {[%emt 0:01:15]} 89. Ke2 {[%emt 0:00:45]} Kg3 {[%emt 0:00:43]} 90. Ke3 {[%emt 0:00:13]} Bb1 {[%emt 0:00:23]} 91. Bd5 {[%emt 0:00:10]} Kg4 {[%emt 0:00:07]} 92. Be6+ {[%emt 0:00:19]} Bf5 {[%emt 0:00:04]} 93. Bc4 {[%emt 0:00:09]} Bc2 {[%emt 0:01:06]} 94. Be6+ {[%emt 0:00:13]} Kh5 {[%emt 0:00:09]} 95. Kd2 {[%emt 0:01:32]} Be4 {[%emt 0:00:17]} 96. Ke3 {[%emt 0:00:05]} Bb1 {[%emt 0:00:42]} 97. Bd5 {[%emt 0:00:09]} Bf5 {[%emt 0:00:26]} 98. Bc4 {[%emt 0:00:27]} Kg4 {[%emt 0:00:41]} 99. Bf7 {[%emt 0:00:23]} Bc2 {[%emt 0:00:11]} 100. Be6+ {[%emt 0:01:08]} Kg3 {[%emt 0:00:10]} 101. Bd5 {[%emt 0:00:13]} Bf5 {[%emt 0:00:14] Ke4} 1/2-1/2

[Event "EYCC Girls-U18 2019"]
[Site "Bratislava"]
[Date "2019.08.08"]
[Round "7.12"]
[White "Swiech, Joanna"]
[Black "Nazarova, Anastasia"]
[Result "1/2-1/2"]
[ECO "D35"]
[WhiteElo "2025"]
[BlackElo "2149"]
[Annotator "NA"]
[PlyCount "157"]
[EventDate "2019.08.02"]
[EventType "swiss"]
[EventCountry "SVK"]
[SourceTitle "playchess.com"]
[Source "ChessBase"]
[SourceQuality "1"]
[TimeControl "40/5400+30:1800+30"]

1. d4 {[%emt 0:00:00]} Nf6 {[%emt 0:00:00]} 2. c4 {[%emt 0:00:00]} e6 {[%emt 0:00:50]} 3. Nc3 {[%emt 0:00:43]} d5 {[%emt 0:00:09]} 4. cxd5 {[%emt 0:00:13]} exd5 {[%emt 0:00:04]} 5. Bg5 {[%emt 0:00:25]} Be7 {[%emt 0:00:07]} 6. e3 {[%emt 0:00:23]} c6 {[%emt 0:00:09]} 7. Bd3 {[%emt 0:00:29]} Nbd7 {[%emt 0:00:13]} 8. Qc2 {[%emt 0:00:41]} Nh5 {[%emt 0:00:12]} 9. Bxe7 {[%emt 0:00:37]} Qxe7 {[%emt 0:00:10]} 10. Nge2 {[%emt 0:01:41]} g6 {[%emt 0:00:13]} 11. O-O-O {[%emt 0:01:51]} Nb6 {[%emt 0:00:37]} 12. Kb1 {[%emt 0:02:46]} Be6 {[%emt 0:01:58]} 13. Rc1 {[%emt 0:01:19]} Nf6 {[%emt 0:07:05]} 14. h3 {[%emt 0:04:32]} O-O-O {[%emt 0:18:23]} 15. Na4 {[%emt 0:11:16]} Nfd7 {[%emt 0:00:49]} 16. Nxb6+ {[%emt 0:02:20]} Nxb6 17. Nc3 {[%emt 0:08:12]} Nc4 {[%emt 0:08:19]} 18. Na4 Qb4 {[%emt 0:22:55]} 19. Ka1 {[%emt 0:03:21]} Nd6 20. Nc5 Bf5 {[%emt 0:02:44]} 21. Bxf5+ {[%emt 0:05:34]} Nxf5 {[%emt 0:01:05]} 22. Rhd1 {[%emt 0:02:50]} Nd6 {[%emt 0:05:48]} 23. Rd3 {[%emt 0:03:19]} Qb6 {[%emt 0:04:05]} 24. Qa4 {[%emt 0:03:25]} a6 {[%emt 0:00:12]} 25. Rb3 {[%emt 0:01:00]} Nb5 {[%emt 0:02:00]} 26. Qb4 {[%emt 0:01:58]} Qc7 {[%emt 0:05:59]} 27. a4 {[%emt 0:07:46]} Nd6 {[%emt 0:01:49]} 28. Rc2 {[%emt 0:10:31]} Rhe8 {[%emt 0:01:03]} 29. Qe1 {[%emt 0:04:36]} Re7 {[%emt 0:01:16]} 30. Qc1 {[%emt 0:03:02]} Qa5 {[%emt 0:04:33]} 31. Ra3 {[%emt 0:00:09]} Nc4 {[%emt 0:07:43]} 32. Ra2 {[%emt 0:02:34]} f6 {[%emt 0:00:09]} 33. b3 {[%emt 0:03:00]} Nd6 {[%emt 0:01:35]} 34. Rab2 {[%emt 0:03:43]} Qb4 {[%emt 0:01:35]} 35. Ka2 {[%emt 0:01:26]} Ne4 {[%emt 0:00:19]} 36. Nxe4 {[%emt 0:00:46]} Rxe4 {[%emt 0:02:24]} 37. Rc5 {[%emt 0:00:30]} Kb8 {[%emt 0:00:10]} 38. a5 {[%emt 0:04:05]} Rde8 39. g3 f5 {[%emt 0:00:41]} 40. h4 {[%emt 0:00:00]} h6 {[%emt 0:00:00]} 41. Rbc2 {[%emt 0:04:50]} g5 {[%emt 0:06:53]} 42. hxg5 {[%emt 0:00:05]} hxg5 {[%emt 0:00:04]} 43. R2c3 {[%emt 0:02:35]} Rh8 {[%emt 0:03:47]} 44. Qd1 {[%emt 0:03:58]} f4 {[%emt 0:03:54]} 45. gxf4 {[%emt 0:00:42]} gxf4 {[%emt 0:00:08]} 46. Qg1 {[%emt 0:01:58]} fxe3 {[%emt 0:01:18]} 47. fxe3 {[%emt 0:04:33]} Reh4 {[%emt 0:05:24]} 48. Rc2 {[%emt 0:01:42]} Rh3 {[%emt 0:01:25]} 49. Re2 {[%emt 0:00:42]} Re8 {[%emt 0:03:18]} 50. Qc1 {[%emt 0:00:52]} Rg3 {[%emt 0:01:04]} 51. Kb2 Reg8 52. Qc3 {[%emt 0:03:11]} Qxc3+ {[%emt 0:00:40]} 53. Rxc3 {[%emt 0:03:33]} R8g4 {[%emt 0:02:24]} 54. Rc1 Re4 55. Rce1 {[%emt 0:05:54]} Kc7 {[%emt 0:00:45]} 56. b4 {[%emt 0:00:42]} Rg7 {[%emt 0:01:04]} 57. Kc3 {[%emt 0:00:47]} Rge7 {[%emt 0:00:15]} 58. Kd3 {[%emt 0:00:14]} b6 {[%emt 0:00:38]} 59. axb6+ {[%emt 0:00:20]} Kxb6 {[%emt 0:00:06]} 60. Ra2 {[%emt 0:02:30]} Re8 {[%emt 0:00:55]} 61. Ra3 {[%emt 0:02:03]} Rh4 {[%emt 0:00:56]} 62. Rea1 {[%emt 0:01:22]} Ra8 {[%emt 0:00:06]} 63. Ra5 {[%emt 0:01:27]} Rh2 {[%emt 0:00:24]} 64. R5a2 {[%emt 0:02:14]} Rxa2 {[%emt 0:00:21]} 65. Rxa2 {[%emt 0:00:05]} Rh8 {[%emt 0:00:04]} 66. Ra5 {[%emt 0:02:39]} Rh1 {[%emt 0:00:07]} 67. Kc2 {[%emt 0:01:57]} Rf1 {[%emt 0:02:03]} 68. Ra3 {[%emt 0:01:01]} Rf2+ {[%emt 0:04:29]} 69. Kc3 {[%emt 0:00:47]} Re2 {[%emt 0:00:07]} 70. Kd3 {[%emt 0:00:04]} Rb2 {[%emt 0:00:08]} 71. Ra4 {[%emt 0:00:55]} Rb3+ {[%emt 0:00:21]} 72. Kd2 {[%emt 0:00:05]} Kb7 {[%emt 0:00:36]} 73. Ke2 {[%emt 0:00:10]} Ka7 {[%emt 0:00:04]} 74. Kd2 {[%emt 0:00:08]} Kb6 {[%emt 0:00:04]} 75. Ke2 {[%emt 0:00:08]} Kb5 {[%emt 0:01:06]} 76. Ra5+ {[%emt 0:00:04]} Kxb4 {[%emt 0:00:43]} 77. Rxa6 {[%emt 0:00:05]} Kb5 {[%emt 0:00:18]} 78. Ra2 {[%emt 0:00:58]} Rb1 {[%emt 0:02:00]} 79. Rc2 {[%emt 0:00:30]} 1/2-1/2

[Event "EYCC Girls-U18 2019"]
[Site "Bratislava"]
[Date "2019.08.08"]
[Round "7.13"]
[White "Grigoryan, Arpine"]
[Black "Represa Perez, Mireya"]
[Result "1-0"]
[ECO "B51"]
[WhiteElo "1996"]
[BlackElo "2017"]
[Annotator "NA"]
[PlyCount "99"]
[EventDate "2019.08.02"]
[EventType "swiss"]
[EventCountry "SVK"]
[SourceTitle "playchess.com"]
[Source "ChessBase"]
[SourceQuality "1"]
[TimeControl "40/5400+30:1800+30"]

1. e4 {[%emt 0:00:00]} c5 {[%emt 0:00:00]} 2. Nf3 {[%emt 0:00:00]} d6 {[%emt 0:00:00]} 3. Bb5+ {[%emt 0:00:00]} Nd7 {[%emt 0:00:00]} 4. O-O {[%emt 0:00:00]} a6 {[%emt 0:00:10]} 5. Bd3 {[%emt 0:00:06]} Ngf6 {[%emt 0:00:50]} 6. c3 {[%emt 0:00:21]} b5 {[%emt 0:02:10]} 7. Bc2 {[%emt 0:00:38]} e5 {[%emt 0:09:13]} 8. d4 {[%emt 0:00:54]} Be7 {[%emt 0:01:11]} 9. a4 {[%emt 0:03:03]} Bb7 {[%emt 0:00:11]} 10. Re1 {[%emt 0:02:47]} O-O {[%emt 0:00:25]} 11. Nbd2 {[%emt 0:02:30]} Re8 {[%emt 0:02:33]} 12. d5 {[%emt 0:08:25]} Bf8 {[%emt 0:06:11]} 13. b3 {[%emt 0:06:15]} g6 {[%emt 0:04:16]} 14. Qe2 {[%emt 0:02:42]} Qb6 {[%emt 0:06:38]} 15. Bd3 {[%emt 0:04:23]} Nh5 {[%emt 0:02:02]} 16. g3 {[%emt 0:02:49]} Reb8 {[%emt 0:08:56]} 17. Bb2 {[%emt 0:07:40]} Nhf6 {[%emt 0:17:27]} 18. axb5 {[%emt 0:07:17]} a5 {[%emt 0:02:47]} 19. Ra2 {[%emt 0:06:18]} Qd8 {[%emt 0:02:32]} 20. Rea1 {[%emt 0:01:44]} Bc8 21. c4 {[%emt 0:03:38]} Ra7 {[%emt 0:01:23]} 22. Bc3 {[%emt 0:02:19]} Rba8 {[%emt 0:00:01]} 23. Nf1 {[%emt 0:01:23]} Nb8 {[%emt 0:02:29]} 24. Qd2 {[%emt 0:03:32]} Ng4 {[%emt 0:02:58]} 25. Rxa5 {[%emt 0:01:21]} Bh6 {[%emt 0:01:21]} 26. Qe1 {[%emt 0:00:58]} Rxa5 {[%emt 0:00:00]} 27. Rxa5 {[%emt 0:00:05]} Rxa5 28. Bxa5 {[%emt 0:00:06]} Qe7 {[%emt 0:00:16]} 29. b4 {[%emt 0:01:51]} Nd7 {[%emt 0:01:38]} 30. Bc2 {[%emt 0:00:08]} Qf8 {[%emt 0:00:57]} 31. N1d2 {[%emt 0:02:21]} Bxd2 {[%emt 0:01:34]} 32. Qxd2 {[%emt 0:03:53]} Kh8 {[%emt 0:00:26]} 33. Qg5 {[%emt 0:02:02]} Ngf6 {[%emt 0:01:52]} 34. bxc5 {[%emt 0:02:22]} h6 {[%emt 0:00:17]} 35. Qe3 {[%emt 0:00:17]} Nxc5 {[%emt 0:00:32]} 36. Bb4 {[%emt 0:00:31]} Ng4 {[%emt 0:00:50]} 37. Qc3 {[%emt 0:01:50]} Nd7 {[%emt 0:05:42]} 38. h3 {[%emt 0:00:32]} Ngf6 {[%emt 0:00:30]} 39. Nxe5 {[%emt 0:00:29]} Kg8 {[%emt 0:00:48]} 40. Nxd7 {[%emt 0:00:00]} Nxd7 {[%emt 0:00:00]} 41. e5 {[%emt 0:11:07]} Nxe5 {[%emt 0:01:57]} 42. Qxe5 {[%emt 0:00:41]} dxe5 {[%emt 0:00:01]} 43. Bxf8 {[%emt 0:00:07]} Kxf8 {[%emt 0:00:09]} 44. c5 {[%emt 0:00:05]} Ke7 {[%emt 0:02:16]} 45. c6 {[%emt 0:00:28]} Kd6 {[%emt 0:02:30]} 46. b6 {[%emt 0:00:10]} Bxh3 {[%emt 0:00:15]} 47. b7 {[%emt 0:00:06]} Kc7 {[%emt 0:00:03]} 48. d6+ {[%emt 0:00:06]} Kb8 {[%emt 0:00:05]} 49. Be4 {[%emt 0:00:23]} f5 {[%emt 0:00:15]} 50. c7+ {[%emt 0:00:05]} 1-0

[Event "EYCC Girls-U18 2019"]
[Site "Bratislava"]
[Date "2019.08.08"]
[Round "7.14"]
[White "Ferkova, Dominika"]
[Black "Nastase, Andreea-Cristina"]
[Result "1/2-1/2"]
[ECO "E54"]
[WhiteElo "2009"]
[BlackElo "1948"]
[Annotator "NA"]
[PlyCount "81"]
[EventDate "2019.08.02"]
[EventType "swiss"]
[EventCountry "SVK"]
[SourceTitle "playchess.com"]
[Source "ChessBase"]
[SourceQuality "1"]
[TimeControl "40/5400+30:1800+30"]

1. d4 {[%emt 0:00:00]} Nf6 {[%emt 0:00:00]} 2. c4 {[%emt 0:00:00]} e6 {[%emt 0:00:00]} 3. Nc3 {[%emt 0:00:00]} Bb4 {[%emt 0:00:00]} 4. e3 {[%emt 0:00:00]} O-O {[%emt 0:00:00]} 5. Bd3 {[%emt 0:00:00]} d5 {[%emt 0:00:17]} 6. Nf3 {[%emt 0:00:00]} dxc4 {[%emt 0:01:46]} 7. Bxc4 {[%emt 0:00:09]} c5 {[%emt 0:00:04]} 8. O-O {[%emt 0:01:07]} b6 {[%emt 0:02:30]} 9. Qe2 {[%emt 0:02:59]} cxd4 {[%emt 0:03:14]} 10. exd4 {[%emt 0:02:32]} Bxc3 {[%emt 0:03:42]} 11. bxc3 {[%emt 0:00:18]} Qc7 {[%emt 0:00:21]} 12. Bb2 {[%emt 0:08:37]} Bb7 {[%emt 0:05:25]} 13. h3 {[%emt 0:04:01]} Nbd7 {[%emt 0:04:38]} 14. Bb3 {[%emt 0:08:03]} a6 {[%emt 0:26:48]} 15. a4 {[%emt 0:03:18]} b5 {[%emt 0:01:41]} 16. Rfc1 {[%emt 0:13:17]} Qb6 {[%emt 0:00:56]} 17. Rab1 {[%emt 0:10:09]} Be4 {[%emt 0:04:27]} 18. Bc2 {[%emt 0:02:14]} Qc6 {[%emt 0:04:06]} 19. Bxe4 {[%emt 0:05:03]} Qxe4 {[%emt 0:01:05]} 20. Qxe4 {[%emt 0:01:58]} Nxe4 {[%emt 0:00:05]} 21. Re1 {[%emt 0:01:38]} Nef6 {[%emt 0:01:32]} 22. Ba3 {[%emt 0:10:30]} Rfc8 {[%emt 0:00:47]} 23. axb5 {[%emt 0:01:47]} axb5 {[%emt 0:00:05]} 24. Bb4 {[%emt 0:00:10]} Nd5 {[%emt 0:00:28]} 25. Rec1 {[%emt 0:01:21]} f6 {[%emt 0:08:47]} 26. Nd2 {[%emt 0:02:09]} N7b6 {[%emt 0:02:01]} 27. Ne4 {[%emt 0:03:01]} Nf4 {[%emt 0:12:33]} 28. Rc2 {[%emt 0:02:02]} Nc4 {[%emt 0:03:21]} 29. Bd6 {[%emt 0:01:37]} Nxd6 {[%emt 0:00:22]} 30. Nxd6 {[%emt 0:00:08]} Rxc3 {[%emt 0:00:05]} 31. Rxc3 {[%emt 0:01:26]} Ne2+ {[%emt 0:00:03]} 32. Kh2 {[%emt 0:00:06]} Nxc3 {[%emt 0:00:02]} 33. Rb3 {[%emt 0:00:28]} Rd8 {[%emt 0:01:41]} 34. Nb7 {[%emt 0:01:12]} Rb8 {[%emt 0:00:05]} 35. Nc5 {[%emt 0:00:05]} Nd5 {[%emt 0:02:30]} 36. Nxe6 {[%emt 0:00:23]} Kf7 {[%emt 0:00:29]} 37. Nc5 {[%emt 0:00:34]} Nc7 {[%emt 0:02:32]} 38. Ra3 {[%emt 0:03:07]} Ra8 {[%emt 0:01:31]} 39. Rb3 {[%emt 0:02:11]} Rb8 {[%emt 0:01:45]} 40. Ra3 {[%emt 0:00:00]} Ra8 {[%emt 0:00:00]} 41. Rb3 {[%emt 0:04:47]} 1/2-1/2

[Event "EYCC Girls-U18 2019"]
[Site "Bratislava"]
[Date "2019.08.08"]
[Round "7.15"]
[White "Verbin, Valentina"]
[Black "Rudzinska, Michalina"]
[Result "0-1"]
[ECO "B42"]
[WhiteElo "1958"]
[BlackElo "2143"]
[Annotator "NA"]
[PlyCount "94"]
[EventDate "2019.08.02"]
[EventType "swiss"]
[EventCountry "SVK"]
[SourceTitle "playchess.com"]
[Source "ChessBase"]
[SourceQuality "1"]
[TimeControl "40/5400+30:1800+30"]

1. e4 {[%emt 0:00:00]} c5 {[%emt 0:00:00]} 2. Nf3 {[%emt 0:00:00]} e6 {[%emt 0:00:00]} 3. d4 {[%emt 0:00:00]} cxd4 {[%emt 0:00:00]} 4. Nxd4 {[%emt 0:00:00]} a6 {[%emt 0:00:00]} 5. Bd3 {[%emt 0:00:00]} Nc6 {[%emt 0:00:00]} 6. Be3 {[%emt 0:00:17]} Nf6 {[%emt 0:00:40]} 7. Nxc6 {[%emt 0:00:34]} dxc6 {[%emt 0:00:27]} 8. O-O {[%emt 0:00:44]} e5 {[%emt 0:00:17]} 9. h3 {[%emt 0:00:06]} Be7 {[%emt 0:03:37]} 10. c4 {[%emt 0:03:31]} Be6 {[%emt 0:02:47]} 11. c5 {[%emt 0:01:02]} Nd7 {[%emt 0:02:45]} 12. Qc2 {[%emt 0:02:14]} Qa5 {[%emt 0:08:46]} 13. Rc1 {[%emt 0:02:37]} Rd8 {[%emt 0:01:56]} 14. Be2 {[%emt 0:03:08]} O-O {[%emt 0:02:44]} 15. a3 {[%emt 0:06:11]} Kh8 {[%emt 0:02:31]} 16. b4 {[%emt 0:00:36]} Qc7 {[%emt 0:00:06]} 17. Nd2 {[%emt 0:01:24]} f5 {[%emt 0:02:18]} 18. exf5 {[%emt 0:01:46]} Bxf5 {[%emt 0:00:08]} 19. Qb2 {[%emt 0:08:31]} Nf6 {[%emt 0:04:41]} 20. Bg5 {[%emt 0:02:33]} h6 {[%emt 0:04:32]} 21. Be3 {[%emt 0:04:12]} Nd5 {[%emt 0:03:52]} 22. Nc4 {[%emt 0:00:30]} Bf6 {[%emt 0:00:19]} 23. Qb3 {[%emt 0:07:55]} Bh7 {[%emt 0:22:14]} 24. Nd6 {[%emt 0:06:20]} Nxe3 {[%emt 0:04:37]} 25. fxe3 {[%emt 0:07:57]} b5 {[%emt 0:03:47]} 26. Bh5 {[%emt 0:02:39]} Bg8 {[%emt 0:06:10]} 27. Qc2 {[%emt 0:02:59]} Be7 {[%emt 0:00:53]} 28. Nf5 {[%emt 0:01:23]} Bh7 {[%emt 0:00:52]} 29. e4 {[%emt 0:00:18]} Bg5 {[%emt 0:00:31]} 30. Nd6 {[%emt 0:08:36]} Bxc1 {[%emt 0:02:24]} 31. Rxc1 {[%emt 0:00:15]} Qe7 {[%emt 0:06:47]} 32. Rd1 {[%emt 0:03:07]} g6 {[%emt 0:00:24]} 33. Bg4 {[%emt 0:05:17]} h5 {[%emt 0:02:14]} 34. Bf3 {[%emt 0:00:16]} Bg8 {[%emt 0:02:22]} 35. Qd2 {[%emt 0:00:29]} Kh7 {[%emt 0:00:40]} 36. Qe3 {[%emt 0:07:28]} Be6 {[%emt 0:00:57]} 37. Rf1 {[%emt 0:02:33]} Qh4 {[%emt 0:04:41]} 38. Qf2 {[%emt 0:04:44]} Qg5 {[%emt 0:01:04]} 39. h4 {[%emt 0:00:51]} Qe7 {[%emt 0:01:51]} 40. Qg3 {[%emt 0:00:00]} Rf4 {[%emt 0:00:00]} 41. Qg5 {[%emt 0:00:13]} Qxg5 {[%emt 0:05:54]} 42. hxg5 {[%emt 0:00:36]} h4 {[%emt 0:00:21]} 43. Kf2 {[%emt 0:00:48]} h3 {[%emt 0:06:23]} 44. g3 {[%emt 0:03:51]} Rxf3+ {[%emt 0:02:08]} 45. Kxf3 {[%emt 0:00:10]} Rf8+ {[%emt 0:00:04]} 46. Ke2 {[%emt 0:00:08]} Bc4+ {[%emt 0:00:05]} 47. Nxc4 {[%emt 0:00:18]} Rxf1 {[%emt 0:00:06]} 0-1

[Event "EYCC Girls-U18 2019"]
[Site "Bratislava"]
[Date "2019.08.08"]
[Round "7.16"]
[White "Ziegenfuss, Antonia"]
[Black "Ucekajova, Veronika"]
[Result "1-0"]
[ECO "A40"]
[WhiteElo "2063"]
[BlackElo "1836"]
[Annotator "NA"]
[PlyCount "65"]
[EventDate "2019.08.02"]
[EventType "swiss"]
[EventCountry "SVK"]
[SourceTitle "playchess.com"]
[Source "ChessBase"]
[SourceQuality "1"]
[TimeControl "40/5400+30:1800+30"]

1. d4 {[%emt 0:00:00]} g6 {[%emt 0:00:00]} 2. c4 {[%emt 0:00:00]} Bg7 {[%emt 0:00:00]} 3. Nc3 {[%emt 0:00:00]} c5 {[%emt 0:00:00]} 4. d5 {[%emt 0:00:22]} Bxc3+ {[%emt 0:00:02]} 5. bxc3 {[%emt 0:00:06]} Qa5 {[%emt 0:00:11]} 6. Qb3 {[%emt 0:05:11]} f5 {[%emt 0:00:30]} 7. e3 {[%emt 0:03:51]} d6 {[%emt 0:00:28]} 8. Bd3 {[%emt 0:02:55]} Nf6 {[%emt 0:00:47]} 9. Ne2 {[%emt 0:07:01]} Nbd7 {[%emt 0:00:55]} 10. h4 {[%emt 0:15:48]} Ne5 {[%emt 0:03:49]} 11. Nf4 {[%emt 0:04:02]} Kf7 {[%emt 0:08:33]} 12. Be2 {[%emt 0:10:34]} Bd7 {[%emt 0:21:30]} 13. Nd3 {[%emt 0:08:23]} Nxc4 {[%emt 0:01:09]} 14. Qxc4 {[%emt 0:07:01]} b5 {[%emt 0:02:57]} 15. Qb3 {[%emt 0:00:16]} c4 {[%emt 0:03:43]} 16. Qb4 {[%emt 0:00:28]} Qxb4 {[%emt 0:00:23]} 17. Nxb4 {[%emt 0:00:08]} a5 {[%emt 0:00:09]} 18. Nc2 {[%emt 0:00:30]} Nxd5 {[%emt 0:00:09]} 19. Bf3 {[%emt 0:06:52]} e6 {[%emt 0:02:33]} 20. Bxd5 {[%emt 0:00:06]} exd5 {[%emt 0:00:08]} 21. a3 {[%emt 0:01:30]} h5 {[%emt 0:08:33]} 22. g3 {[%emt 0:02:59]} a4 {[%emt 0:09:39]} 23. Ke2 {[%emt 0:01:21]} Rhe8 {[%emt 0:00:43]} 24. Rd1 {[%emt 0:01:05]} Bc6 {[%emt 0:01:32]} 25. Nb4 {[%emt 0:00:37]} Bb7 {[%emt 0:03:47]} 26. Ra2 {[%emt 0:03:04]} Ke6 {[%emt 0:03:30]} 27. Rad2 {[%emt 0:00:23]} Red8 {[%emt 0:00:35]} 28. Nxd5 {[%emt 0:00:53]} Bxd5 {[%emt 0:00:16]} 29. Rxd5 {[%emt 0:00:05]} Rab8 {[%emt 0:00:40]} 30. e4 {[%emt 0:04:16]} fxe4 {[%emt 0:00:38]} 31. Bf4 {[%emt 0:00:31]} Rb6 {[%emt 0:00:12]} 32. Be3 {[%emt 0:00:31]} Rb7 {[%emt 0:00:23]} 33. Bc5 {[%emt 0:01:54]} 1-0